Cogmind - Beta 14 @@@ ROGUE MODE // 2024.11.20 @ 23:12:07 Player: skye Result: Destroyed by as-21018 with Assembled Rifle Performance ------------- Evolutions (0) 0 Regions Visited (2) 400 Robots Destroyed (16) 80 Value Destroyed (424) 424 Prototype IDs (0) 0 Alien Tech Used (0) 0 Bonus (0) 0 TOTAL SCORE: 904 Bonus ------- None Cogmind --------- Core Integrity 0/250 Matter 300/300 Energy 250/250 System Corruption 0% Temperature Cool (24) Movement Rolling (110) Ox2 Location -10/Mines Parts ------- > --- POWER (1) -------- Ion Engine > --- PROPULSION (2) --- Wheel > --- UTILITY (2) ------ Large Storage Unit Signal Interpreter > --- WEAPON (2) ------- Particle Gun > --- INVENTORY (15) --- Ion Engine Light Ion Engine Light Treads Terrain Scanner ECM Suite Hacking Suite EM Pulse Gun Assault Rifle Datajack Mining Laser Peak State ------------ > --- POWER ------------ Light Nuclear Core > --- PROPULSION ------- Light Treads Light Treads > --- UTILITY ---------- Large Storage Unit Signal Interpreter > --- WEAPON ----------- Assault Rifle Grenade Launcher > --- INVENTORY -------- Ion Engine Ion Engine Light Ion Engine Light Treads Light Treads Wheel Compact Wheel Hacking Suite EM Pulse Gun Medium Laser Assault Rifle Grenade Launcher Grenade Launcher Datajack Mining Laser [Rating: 10] Favorites ----------- Power Ion Engine Engine Ion Engine Power Core Light Nuclear Core Propulsion Light Treads Treads Light Treads Leg Aluminum Leg Wheel Wheel Utility Signal Interpreter Storage Large Storage Unit Processor Signal Interpreter Weapon Assault Rifle Energy Gun EM Pulse Gun Ballistic Gun Assault Rifle Launcher Grenade Launcher Build | -11 -10 -10 ------- Run | Yrd Mat Min Slots Evolved . | . . . Power . | . . . Propulsion . | . . . Utility . | . . . Weapon . | . . . Parts Attached 18 | 3 6 9 Power 4 | . 1 3 Engine 3 | . 1 2 Core 1 | . . 1 Reactor . | . . . Propulsion 7 | 3 1 3 Treads 5 | 2 1 2 Leg . | . . . Wheel 2 | 1 . 1 Hover . | . . . Flight . | . . . Utility 2 | . 2 . Device . | . . . Storage 1 | . 1 . Processor 1 | . 1 . Hackware . | . . . Protection . | . . . Artifact . | . . . Weapon 5 | . 2 3 Energy Gun 1 | . . 1 Energy Cannon . | . . . Ballistic Gun 1 | . 1 . Ballistic Cannon . | . . . Launcher 3 | . 1 2 Special Weapon . | . . . Impact Weapon . | . . . Slashing Weapon . | . . . Piercing Weapon . | . . . Special Melee Weapon . | . . . Unidentified Prototypes . | . . . Parts Lost 10 | . 1 9 Power 2 | . . 2 Propulsion 3 | . . 3 Utility . | . . . Weapon 5 | . 1 4 Highest Loss Streak 8 | . 1 8 To Critical Strikes . | . . . Average Slot Usage (%) 92 | . 93 89 Engine 13 | . 14 10 Treads 26 | . 28 20 Storage 14 | . 14 14 Processor 10 | . 10 14 Energy Gun 3 | . 3 3 Ballistic Gun 13 | . 14 9 Launcher 9 | . 9 10 Peak Build Rating 10 | 6 8 10 Average Rating 7 | 6 7 7 On Entrance 6 | 6 6 8 Naked Turns . | . . . Heaviest Build 30 | 14 30 30 Greatest Support 40 | 40 40 40 Greatest Overweight (x) 2 | . . 2 Average Overweight (x) . | . . . Largest Inventory Capacity 15 | 8 15 15 Average Capacity 11 | 8 11 15 Most Carried 15 | 6 14 15 Average Carried 10 | 6 9 13 Final Capacity 15 | 8 15 15 Final Carried 14 | 6 14 10 Class Distribution -------------------- 100% | Mutant Dominant Class ---------------- Mutant | -10/Materials Mutant | -10/Mines Resources | -11 -10 -10 ----------- Run | Yrd Mat Min Matter Collected 750 | 230 221 299 Remotely . | . . . Salvage Created 398 | . 295 103 Parts 27 | . 22 5 Haulers Intercepted . | . . . Recyclers Shooed . | . . . Parts Field Recycled . | . . . Retrieved Matter . | . . . Parts Self-Destructed . | . . . Prevented . | . . . Kills | -11 -10 -10 ------- Run | Yrd Mat Min Combat Hostiles Destroyed 21 | . 10 11 Guns 12 | . 8 4 AOE 9 | . 2 7 Classes Destroyed 7 | . 4 3 Builder 1 | . . 1 Operator 1 | . 1 . Watcher 1 | . 1 . Swarmer 5 | . 5 . Grunt 7 | . 5 2 Demolisher 1 | . . 1 Assembled 8 | . . 8 Best Kill Streak 7 | . 3 7 Combat Bots Only 7 | . 3 7 Max Kills in Single Turn 2 | . 1 2 Gunslinging . | . . . Exploded 2 | . 1 2 Melee . | . . . Uniques/NPCs Destroyed . | . . . Combat | -11 -10 -10 -------- Run | Yrd Mat Min Hostile Shots Fired 103 | . 59 44 Missed 26 | . 21 5 Damage Taken 1497 | . 388 1109 Core 255 | . 42 213 Absorbed by Shields . | . . . Regen/Repaired (Parts) 91 | . 91 . Core Remaining (%) 100 | 100 . . Volleys Fired 101 | . 71 30 Largest 2 | . 2 1 Hottest 65 | . 60 65 Shots Fired 119 | . 89 30 Gun 97 | . 85 12 Cannon . | . . . Launcher 22 | . 4 18 Special . | . . . Kinetic 77 | . 67 10 Thermal 2 | . . 2 Explosive 22 | . 4 18 Electromagnetic 18 | . 18 . Robot Hit Streak 10 | . 10 5 Robot Miss Streak 10 | . 10 3 Penetration Max . | . . . Secondary Targets . | . . . Shots Hit Robots 70 | . 52 18 Core Hits 53 | . 19 34 Critical Kills . | . . . Critical Parts Destroyed 1 | . 1 . Critical Strikes 1 | . 1 . Destroy 1 | . 1 . Melee Attacks . | . . . Impact . | . . . Slashing . | . . . Piercing . | . . . Sneak Attacks . | . . . Combat Hostiles . | . . . Follow-up Attacks . | . . . Damage Inflicted 1562 | . 889 673 Guns 757 | . 656 101 Cannons . | . . . Explosions 805 | . 233 572 Melee . | . . . Ramming . | . . . Kinetic 610 | . 525 85 Thermal 80 | . 64 16 Explosive 741 | . 169 572 Electromagnetic 131 | . 131 . Impact . | . . . Slashing . | . . . Piercing . | . . . Highest Corruption . | . . . Average Corruption . | . . . Corruption Purged . | . . . Corruption Blocked . | . . . Overload Shots . | . . . Overflow Damage 6 | . . 6 Projectiles . | . . . Explosions 6 | . . 6 Melee . | . . . Knockbacks . | . . . Impact . | . . . Kinetic . | . . . Secondary . | . . . Self-Inflicted Damage 98 | . 32 66 Shots 6 | . 1 5 Rammed . | . . . Targets Rammed . | . . . Kicked . | . . . Crushed . | . . . Highest Temperature 40 | . 12 40 Average Temperature 17 | . 6 24 Received Heat Transfer 268 | . 99 169 Siege Activations . | . . . Robots Corrupted . | . . . Combat Hostiles . | . . . Parts Fried . | . . . Impact Corruptions . | . . . Robots Melted . | . . . Combat Hostiles . | . . . Parts Melted . | . . . Heat Transferred 37 | . . 37 Parts Sabotaged . | . . . Parts Stolen . | . . . Parts Stripped . | . . . Power Chain Reactions 1 | . 1 . Alert | -11 -10 -10 ------- Run | Yrd Mat Min Peak Influence 177 | . 177 114 Initial 2 | . . 2 Average 65 | . 67 62 Maximum Alert Level . | . . . Low Security (%) 100 | 100 100 100 Level 1 . | . . . Level 2 . | . . . Level 3 . | . . . Level 4 . | . . . Level 5 . | . . . High Security . | . . . Max Security . | . . . Squads Dispatched 3 | . 3 . Investigation 2 | . 2 . Extermination . | . . . Reinforcement 1 | . 1 . Assault . | . . . Garrison . | . . . Intercept . | . . . Searches Triggered . | . . . Construction Impeded . | . . . Haulers Reinforced . | . . . Active Scanning Responses . | . . . Cargo Convoy Interrupts . | . . . Stealth | -11 -10 -10 --------- Run | Yrd Mat Min Distress Signals 1 | . . 1 Communications Jammed . | . . . Distress Signals . | . . . Times Spotted 41 | . 26 15 Peak Tracking Total 8 | . 4 8 Tactical Retreats 4 | . 2 2 Traps | -11 -10 -10 ------- Run | Yrd Mat Min Traps Triggered 2 | . 2 . Indirectly . | . . . Trap Hack Attempts . | . . . Triggered . | . . . Disarmed . | . . . Reprogrammed . | . . . Reused . | . . . Traps Extracted . | . . . Installed . | . . . Triggered . | . . . Machines | -11 -10 -10 ---------- Run | Yrd Mat Min Machines Disabled 2 | . 2 . Max in Single Turn 1 | . 1 . Machines Repaired . | . . . Machines Dismantled . | . . . Machines Sabotaged . | . . . Overloaded Fab Kills . | . . . Hacking | -11 -10 -10 --------- Run | Yrd Mat Min Machines Accessed 9 | . 9 . Terminals 6 | . 6 . Fabricators . | . . . Repair Stations 1 | . 1 . Recycling Units 2 | . 2 . Scanalyzers . | . . . Garrison Access . | . . . Total Hacks 31 | . 31 . Successful 17 | . 17 . Failed 14 | . 14 . Catastrophic 1 | . 1 . Database Lockouts . | . . . Manual 29 | . 29 . Terminals 25 | . 25 . Fabricators . | . . . Repair Stations 2 | . 2 . Recycling Units 4 | . 4 . Scanalyzers . | . . . Garrison Access . | . . . Terminal Hacks 7 | . 7 . Record 2 | . 2 . Dispatch Records 1 | . 1 . Recall Investigation 1 | . 1 . Recall Reinforcements 1 | . 1 . Hauler Manifests 1 | . 1 . Zone Layout 1 | . 1 . Fabricator Hacks . | . . . Repair Station Hacks 2 | . 2 . Scan Component 1 | . 1 . Repair 1 | . 1 . Recycling Unit Hacks 4 | . 4 . Process 1 | . 1 . Report Inventory 2 | . 2 . Retrieve Matter 1 | . 1 . Scanalyzer . | . . . Garrison Access Hacks . | . . . Unauthorized Hacks 4 | . 4 . Terminals 4 | . 4 . Botnet 4 | . 4 . Fabricators . | . . . Repair Stations . | . . . Recycling Units . | . . . Scanalyzers . | . . . Garrison Access . | . . . Data Cores Recovered . | . . . Used . | . . . Hacking Detections 7 | . 7 . Full Trace Events . | . . . Feedback Events . | . . . Feedback Blocked . | . . . Robot Schematics Acquired . | . . . Robots Built . | . . . Authchips . | . . . Time . | . . . Total Robot Build Rating . | . . . Part Schematics Acquired . | . . . Parts Built . | . . . Authchips . | . . . Time . | . . . Total Part Build Rating . | . . . Parts Repaired 1 | . 1 . Time 26 | . 26 . Parts Recycled . | . . . Recycled Matter 36 | . 36 . Retrieved Matter 36 | . 36 . Retrieved Components . | . . . Parts Scanalyzed . | . . . Part Schematics Acquired . | . . . Parts Damaged . | . . . Bothacking | -11 -10 -10 ------------ Run | Yrd Mat Min Used RIF Installer . | . . . Robots Hacked . | . . . Non-combat . | . . . Combat . | . . . Robot Hacks Applied . | . . . Relay Couplers Released . | . . . Fabnet Peak Effective % . | . . . Robots Rewired . | . . . Allies Hacked . | . . . Hacks Repelled . | . . . Allies | -11 -10 -10 -------- Run | Yrd Mat Min Total Allies . | . . . Largest Group . | . . . Highest-Rated Group . | . . . Highest-Rated Ally . | . . . Total Orders . | . . . Ally Attacks . | . . . Total Damage . | . . . Kills . | . . . Allies Corrupted . | . . . Allies Melted . | . . . Intel | -11 -10 -10 ------- Run | Yrd Mat Min Robot Analysis Total . | . . . Derelict Logs Recovered . | . . . Drone Launches . | . . . Drone Recoveries . | . . . Exploration | -11 -10 -10 ------------- Run | Yrd Mat Min Turns Passed 2310 | 11 1805 494 Spaces Moved 1239 | 5 939 295 Core . | . . . Treads 1134 | 5 939 190 Legs . | . . . Wheels 105 | . . 105 Hover . | . . . Flight . | . . . Fastest Speed 110 | 160 160 110 Average Speed 155 | 160 160 142 Slowest Speed 160 | 160 160 160 Overloaded Moves . | . . . Propulsion Burnouts . | . . . Robots Hopped . | . . . Cave-ins Triggered . | . . . Exploration Rate (%) 48 | 2 80 63 Regions Visited 2 Branch Regions 1 Pre-discovered Areas . | . . . Known Exits Taken 1 | . 1 . Unknown Exits Taken 1 | 1 . . Scrap Searched 1 | . . 1 Spaces Dug . | . . . Terrain Destroyed 123 | . 36 87 Melee . | . . . Projectile . | . . . AOE 123 | . 36 87 Terrain Rammed . | . . . Walls Destroyed . | . . . Machines Disabled . | . . . Actions | -11 -10 -10 --------- Run | Yrd Mat Min Total 1502 | 7 1156 339 Wait 124 | . 124 . Move 1237 | 4 938 295 Hop . | . . . Pick Up 15 | . 12 3 Fast Attach 1 | . . 1 Attach 8 | . 2 6 Detach . | . . . Swap 9 | 3 4 2 Drop 7 | . 5 2 Fire 101 | . 71 30 Melee . | . . . Ram . | . . . Kick . | . . . Crush . | . . . Escape Stasis . | . . . Rewire . | . . . Trap . | . . . Miscellaneous . | . . . Route ------- -11/Scrapyard -10/Materials (discovered 2 exits: *Mat / *Min) -10/Mines (discovered 1 exit: *Mat) History --------- Turn | Location | Event 6 | -11/Scrapyard | Discovered new exit (range 3) 12 | -11/Scrapyard | Entered Materials 310 | -10/Materials | Build established: Mutant 1119 | -10/Materials | Discovered new exit (range 17) 1183 | -10/Materials | Repaired Assault Rifle 1339 | -10/Materials | Identified exit to Materials 1584 | -10/Materials | Discovered new exit (range 12) 1640 | -10/Materials | Identified exit to Mines 1817 | -10/Materials | Entered Mines 1946 | -10/Mines | Assembled infested the area 2016 | -10/Mines | Destroyed 7 combat bots 2043 | -10/Mines | Discovered exit to Materials (range 15) 2175 | -10/Mines | Core integrity fell below 50% 2185 | -10/Mines | Core integrity fell below 20% 2218 | -10/Mines | Lost 8 parts (1p3n4w) 2311 | -10/Mines | Destroyed by as-21018 with Assembled Rifle Last Messages --------------- Lgt. Treads destroyed. D-53 Grenadier destroyed. The unstable cave ceiling collapses. as-70058 destroyed. The unstable cave ceiling collapses. Grenade Launcher destroyed. D-53 Grenadier destroyed. The unstable cave ceiling collapses. Acquired 101 matter. Acquired 1 matter. Acquired 26 matter. The unstable cave ceiling collapses. U-05 Engineer builds a Wall. K-01 Serf collects debris. U-05 Engineer lays Concrete. Acquired Ion Engine. U-05 Engineer lays Concrete. K-01 Serf collects debris. Acquired 10 matter. K-01 Serf collects debris. Map ----- +----------------------------------------------------+ | | | | | | | | | | | | | | | | | | | | | | | | | | | | | | | | | ?????????????????????????????????????????? | | ?????????????????????????????????????????? | | ?????????????????????????????????????????? | | ??????????????????????????????????###????? | | ?????????????????????????????????# ##???? | | ??????????????????????????####?## #???? | | ????????????????########### ### #???? | | ????????????????# #????? | | ????????????????# ######## ##???? | | ????????????????#@#?????## #???? | | ????????????????#a#???### #???? | | ???????????????? #??## #???? | | ???????????????? #?## ##???? | | ???????????????####?# ##????? | | ????????????????????# ##?????# | | ????????????????????## #??????# | | ?????????????????????###### ##????## | | ??????????????????????????## ### ###### | | ???????????????????????????####?## # | | ?????????????????????????????????## | | | ????????????????????# ????????????##! * | | ???????????????????# ?????????????## | | ??????????????????? ?????????????## ![[# | | ??????????????????? ??????????#### [%## | | ?????????????###??? ?????????## # # | | ?????????????? $??# ???####### ## # | | ??????????????# ?## #??## " | | ??????????????# ## #??# | | ?????????????## # #??# ## # | | ?????????????# ##?## ## # # | | ?????????????# #### ## ####### | | ???????????????# ## ## #?????# | | ?????????????????# ## ????? # | | ????????????????## #####??????# # | +----------------------------------------------------+ Best States ------------- Heat Dissipation 25 Energy Generation 14 Energy Capacity 250 Matter Stores 300 Matter Capacity 300 Sight Range 16 Terrain Scan Density 10 Evasion (%) 40 Recoil Reduction 2 Item Schematics ----------------- None Robot Schematics ------------------ None Fabricated ------------ Nothing Alien Tech Used ----------------- None Achievements -------------- None Challenges ------------ None Game ------ Seed SiegeCobblerShearcannon Manual? 0 Play Time 00:17:11 Cumulative 51.4 hours Start 2024.11.20 @ 22:38:44 End 2024.11.20 @ 23:12:07 Sessions 1 Manual Loads 0 Difficulty Rogue Special Mode None Game No. 63 Rogue 19 Adventurer 44 Explorer 0 Win Type - Total 0 Types 0/0/0/0/0/0/0/0/0 Lore% 18 Gallery% 42 Achievement% 30 Wizard Run 0 Options --------- Layout 1 ASCII 0 Keyboard 1 Movement Vi Keybinds 0 Fullscreen 1 Font 24/Terminus Map View 50x40 Zoom Use 0% Tactical HUD 0 Map Filters NONE Filters NONE Steam 1 RUN: 324b649b-1017-45fb-99cd-ab29598ccac2